{"text_format":"1","workbook":"xlsx","n_sheets":1,"sheets":["Form"],"not_rendered":{"charts":0,"images":5,"macros":1,"external_links":0,"defined_names":17,"comments":0,"pivot_tables":0},"unopened":[],"bounds":{"document_bytes":16777216,"sheet_cells":100000,"rows_first":2000,"rows_last":500,"rows_between":2000,"halvings":0,"cell_chars":16384,"cell_head_chars":4096},"cells_cut":0,"cells_raw":0,"read":"whole","date_system":"1900"}

{"sheet":"Form","index":0,"n_rows":74,"n_cols":27,"rows_kept":74,"cut":false,"hidden":false,"merged":[[15,25,15,26],[58,25,58,26],[66,25,66,26],[72,1,73,2],[72,3,72,4],[72,5,72,6],[72,7,72,8],[72,9,72,10],[73,3,73,4],[45,1,45,2],[51,1,52,2],[66,1,66,6],[64,1,64,17],[59,14,60,16],[57,14,58,16],[61,1,63,17],[55,19,64,23],[40,16,41,16],[42,17,43,17],[59,6,60,6],[33,11,38,14],[51,9,52,11],[55,12,56,13],[57,12,58,13],[55,2,56,6],[57,2,58,6],[13,11,13,12],[51,7,52,8],[53,7,54,8],[55,7,56,8],[19,12,19,13],[72,11,73,12],[72,13,73,17],[73,5,73,6],[73,7,73,8],[73,9,73,10],[57,17,58,17],[40,13,41,13],[57,7,58,8],[53,9,54,11],[53,12,54,13],[51,3,52,5],[59,2,60,5],[59,17,60,17],[59,9,60,11],[65,7,66,12],[65,14,66,17],[20,13,20,14],[22,1,22,10],[23,1,23,17],[3,11,3,14],[24,11,24,14],[2,1,2,5],[2,6,2,10],[49,19,53,23],[66,19,71,23],[67,1,67,17],[40,2,41,2],[40,4,41,4],[40,7,41,7],[40,10,41,10],[51,6,52,6],[10,11,10,12],[40,1,41,1],[46,4,46,5],[59,7,60,8],[59,1,60,1],[55,1,56,1],[57,1,58,1],[53,1,54,2],[53,3,54,6],[42,15,43,16],[55,9,56,11],[57,9,58,11],[51,12,52,13],[51,14,52,17],[53,14,54,17],[55,14,56,17],[0,1,0,8],[47,1,47,2],[0,15,1,17],[1,6,1,7],[1,4,1,5],[1,12,1,13],[1,8,1,10],[13,15,13,17],[24,1,24,4],[21,15,21,17],[24,5,24,6],[13,1,21,5],[2,11,2,14],[13,6,21,10],[1,1,1,3],[46,1,46,3],[9,12,9,13],[4,15,4,17],[5,15,5,17],[6,15,6,17],[32,1,32,4],[7,15,7,17],[14,15,14,17],[18,15,18,17],[12,1,12,5],[59,12,60,13],[6,11,6,12],[7,11,7,12],[15,15,15,17],[10,15,10,17],[25,1,31,4],[32,11,32,14],[42,1,43,2],[46,6,46,7],[48,1,48,2],[38,5,38,6],[37,15,38,17],[42,3,43,4],[42,6,43,7],[42,9,43,10],[42,12,43,13],[4,19,6,23],[14,19,21,23],[36,19,38,23],[23,19,34,23],[40,19,47,23],[8,19,12,23],[12,6,12,10],[3,1,11,5],[25,15,34,17],[36,15,36,17],[32,7,32,10],[33,7,38,10],[3,6,11,10],[14,11,14,12],[15,11,15,12],[8,11,8,14],[16,11,16,13],[25,7,31,10],[24,7,24,10],[25,11,31,14],[4,11,4,12],[5,11,5,12],[24,15,24,17],[33,1,38,4]]}
[null,"Custom Butterfly Valve Retrofit Solution Form",null,null,null,null,null,null,null,{"$f":"IF(AND(Z46=TRUE, Z47=TRUE),\"In OR mm REQUIRED\",IF(AND(Z46=FALSE,Z47=FALSE),\"In or mm REQUIRED\",\"\"))","v":"In or mm REQUIRED"},"INCHES",null,"MILLIMETERS",null,null,{"$f":"IF(AND(L2=1, O2=2, OR(G2=\"GM_GK\",G2=\"AM_NM\", G2=\"LM\",G2=\"AF_NF\",G2=\"LF\", G2=\"EF\", G2=\"LM_NM_AM_GM_N4\")),\"UFSP0000\",\n\nIF(AND(L2=1, O2=3, OR(G2=\"GM_GK\",G2=\"AM_NM\", G2=\"LM\",G2=\"AF_NF\",G2=\"LF\", G2=\"EF\",G2=\"LM_NM_AM_GM_N4\")),\"UFSP0002\",\n\nIF(AND(L2=2, O2=2, OR(G2=\"GM_GK\",G2=\"AM_NM\", G2=\"LM\",G2=\"AF_NF\",G2=\"LF\", G2=\"EF\", G2=\"LM_NM_AM_GM_N4\")),\"UFSP0008\",\n\nIF(AND(L2=2, O2=3, OR(G2=\"GM_GK\",G2=\"AM_NM\", G2=\"LM\",G2=\"AF_NF\",G2=\"LF\", G2=\"EF\", G2=\"LM_NM_AM_GM_N4\")), \"UFSP0010\",\n\nIF(AND(L2=1, O2=2, OR(G2=\"PR_PKR\",G2=\"SY4_SY5_SY6\",G2=\"SY7_SY8\",G2=\"SY1_\", G2=\"SY2_SY3\", G2=\"DK_DR\")),\"UFSP0020\",\n\nIF(AND(L2=1, O2=3, OR(G2=\"SY4_SY5_SY6\",G2=\"SY7_SY8\",G2=\"SY1_\", G2=\"SY2_SY3\", G2=\"PR_PKR\", G2=\"DK_DR\")),\"UFSP0024\",\n\nIF(AND(L2=1, O2=2, OR(G2=\"SY9_SY10_SY11_SY12\")),\"UFSP0022\",\n\nIF(AND(L2=1, O2=3, OR(G2=\"SY9_SY10_SY11_SY12\")),\"UFSP0026\", IF(G2=\"OTHER\", \"\",\"\")))))))))","v":""},null,null,null,null,null,null,null,null,null,"New Actuators Drop Down List:"]
[null,"UFSP Series",null,null,"NEW ACTUATOR:",null,null,null,"1  OR  2 ACTUATOR(S):",null,null,null,"2 OR 3 WAY:",null,null,null,null,null,null,null,null,null,null,null,null,"PR_PKR"]
[null,"MOUNT STYLE 1",null,null,null,null,"MOUNT STYLE 2",null,null,null,null,"MOUNT STYLE DIMENSIONS",null,null,null,null,null,null,null,null,null,null,null,null,null,"SY4_SY5_SY6"]
[null,null,null,null,null,null,null,null,null,null,null,"EX: 1.250 OR 1  1/4",null,null,null,null,null,null,null,null,null,null,null,null,null,"SY7_SY8"]
[null,null,null,null,null,null,null,null,null,null,null,"MOUNT STYLE:",null,null,null,{"$f":"IF(NOT(OR(N5=1,N5=2,N5=3,N5=4,N5=5)),\"MOUNT STYLE REQUIRED\",IF(N5=5,\"SUPPLY MOUNTING SKETCH\",\"\"))","v":"MOUNT STYLE REQUIRED"},null,null,null,"Step 1: Choose the unit of measurement to be used to fill out the form.           Inches or millimeters\n",null,null,null,null,null,"SY9_SY10_SY11_SY12"]
[null,null,null,null,null,null,null,null,null,null,null,"DIM A:",null,null,{"$f":"IF(AND(Z46=TRUE, Z47=FALSE, NOT((ISBLANK(N6)))),\"inch(es)\",IF(AND(Z47=TRUE, Z46=FALSE, NOT((ISBLANK(N6)))),\"mm\",\"\"))","v":""},{"$f":"IF(AND(OR(N5=1,N5=2,N5=3,N5=4),AND((ISBLANK(N11)),(ISBLANK(N6)))),\"CANNOT BE BLANK\",IF(N5=5,\"MOUNTING SKETCH\",IF(ISNUMBER(SEARCH(\"MM\",N6)),\"DO NOT INCLUDE UNIT OF MEASURE\",IF(ISNUMBER(SEARCH(CHAR(34),N6)),\"DO NOT INCLUDE UNIT OF MEASURE\",IF(ISNUMBER(SEARCH(\"in\",N6)),\"DO NOT INCLUDE UNIT OF MEASURE\",\"\")))))","v":""},null,null,null,null,null,null,null,null,null,"GM_GK"]
[null,null,null,null,null,null,null,null,null,null,null,"DIM B:",null,null,{"$f":"IF(AND(Z46=TRUE, Z47=FALSE, NOT((ISBLANK(N7)))),\"inch(es)\",IF(AND(Z47=TRUE, Z46=FALSE, NOT((ISBLANK(N7)))),\"mm\",\"\"))","v":""},{"$f":"IF(AND(OR(N5=1,N5=2,N5=4),AND((ISBLANK(N11)),(ISBLANK(N7)))),\"CANNOT BE BLANK\",IF(N5=3,\"MAY NOT BE REQUIRED\",IF(N5=5,\"MOUNTING SKETCH\",IF(ISNUMBER(SEARCH(\"MM\",N7)),\"DO NOT INCLUDE UNIT OF MEASURE\",IF(ISNUMBER(SEARCH(CHAR(34),N7)),\"DO NOT INCLUDE UNIT OF MEASURE\",IF(ISNUMBER(SEARCH(\"in\",N7)),\"DO NOT INCLUDE UNIT OF MEASURE\",\"\"))))))","v":""},null,null,null,null,null,null,null,null,null,"AM_NM"]
[null,null,null,null,null,null,null,null,null,null,null,"DIM C:",null,null,{"$f":"IF(AND(Z46=TRUE, Z47=FALSE, NOT((ISBLANK(N8)))),\"inch(es)\",IF(AND(Z47=TRUE, Z46=FALSE, NOT((ISBLANK(N8)))),\"mm\",\"\"))","v":""},{"$f":"IF(AND(ISBLANK(N8),OR(N5=1,N5=2,N5=3,N5=4)),\"CANNOT BE BLANK\",IF(N5=5,\"MOUNTING SKETCH\",IF(AND(H41+N41<>N8,C41=8),\"DIM E+ DIM G MUST = DIM C\",IF(ISNUMBER(SEARCH(\"MM\",N8)),\"DO NOT INCLUDE UNIT OF MEASURE\",IF(ISNUMBER(SEARCH(CHAR(34),N8)),\"DO NOT INCLUDE UNIT OF MEASURE\",IF(ISNUMBER(SEARCH(\"in\",N8)),\"DO NOT INCLUDE UNIT OF MEASURE\",\"\"))))))","v":""},null,null,null,null,null,null,null,null,null,"AF_NF"]
[null,null,null,null,null,null,null,null,null,null,null,"A & B MEASURED FROM CENTRE OF HOLE",null,null,null,null,null,null,null,"Step 2: If Belimo Tech Support has advised on which actuators to use fill out the 'New Actuator' and '1 or 2 Actuator(s)' areas, otherwise leave blank. Determine if the valve is 2 way or 3 way.",null,null,null,null,null,"LM"]
[null,null,null,null,null,null,null,null,null,null,null,null," ---OR---",null,null,null,null,null,null,null,null,null,null,null,null,"LF"]
[null,null,null,null,null,null,null,null,null,null,null," Bolt Circle (B.C.)",null,null,{"$f":"IF(AND(Z46=TRUE, Z47=FALSE, NOT((ISBLANK(N11)))),\"inch(es)\",IF(AND(Z47=TRUE, Z46=FALSE, NOT((ISBLANK(N11)))),\"mm\",\"\"))","v":""},{"$f":"IF(AND(OR(N5=1,N5=2,N5=3,N5=4),AND((ISBLANK(N11)),(ISBLANK(N6)))),\"CANNOT BE BLANK\",IF(ISNUMBER(SEARCH(\"MM\",N11)),\"DO NOT INCLUDE UNIT OF MEASURE\",IF(ISNUMBER(SEARCH(CHAR(34),N11)),\"DO NOT INCLUDE UNIT OF MEASURE\",IF(ISNUMBER(SEARCH(\"in\",N11)),\"DO NOT INCLUDE UNIT OF MEASURE\",\"\"))))","v":""},null,null,null,null,null,null,null,null,null,"EF"]
[null,null,null,null,null,null,null,null,null,null,null,"DIM A:",{"$f":"IF(ISBLANK(N11),\"\", IF(OR(N5=1,N5=2,N5=4),SIN(45*PI()/180)*N11,IF(N5=3,SIN(90*PI()/180)*N11,\"\")))","v":""},"DIM B:",{"$f":"IF(ISBLANK(N11), \"\", IF(OR(N5=1,N5=2,N5=4),SIN(45*PI()/180)*N11,IF(N5=3,\"N/A\",\"\")))","v":""},null,null,null,null,null,null,null,null,null,null,"LM_NM_AM_GM_N4"]
[null,"MOUNT STYLE 3",null,null,null,null,"MOUNT STYLE 4",null,null,null,null,null,null,null,null,null,null,null,null,null,null,null,null,null,null,"OTHER"]
[null,null,null,null,null,null,null,null,null,null,null,"DIM C1:",null,null,{"$f":"IF(AND(Z46=TRUE, Z47=FALSE, NOT((ISBLANK(N14)))),\"inch(es)\",IF(AND(Z47=TRUE, Z46=FALSE, NOT((ISBLANK(N14)))),\"mm\",\"\"))","v":""},{"$f":"IF(AND(N5=4,(ISBLANK(N14))),\"CANNOT BE BLANK\",IF(ISNUMBER(SEARCH(\"MM\",N14)),\"DO NOT INCLUDE UNIT OF MEASURE\",IF(ISNUMBER(SEARCH(CHAR(34),N14)),\"DO NOT INCLUDE UNIT OF MEASURE\",IF(ISNUMBER(SEARCH(\"in\",N14)),\"DO NOT INCLUDE UNIT OF MEASURE\", IF(AND(N5=4,(NOT(ISBLANK(N14)))),\"\",IF(OR(N5=1,N5=2,N5=3,N5=5),\" \",\"\"))))))","v":""}]
[null,null,null,null,null,null,null,null,null,null,null,"DIM G1:",null,null,{"$f":"IF(AND(Z46=TRUE, Z47=FALSE, NOT((ISBLANK(N15)))),\"inch(es)\",IF(AND(Z47=TRUE, Z46=FALSE, NOT((ISBLANK(N15)))),\"mm\",\"\"))","v":""},{"$f":"IF(AND(N5=4,(ISBLANK(N15))),\"CANNOT BE BLANK\",IF(ISNUMBER(SEARCH(\"MM\",N15)),\"DO NOT INCLUDE UNIT OF MEASURE\",IF(ISNUMBER(SEARCH(CHAR(34),N15)),\"DO NOT INCLUDE UNIT OF MEASURE\",IF(ISNUMBER(SEARCH(\"in\",N15)),\"DO NOT INCLUDE UNIT OF MEASURE\", IF(AND(N5=4,(NOT(ISBLANK(N15)))),\"\",IF(OR(N5=1,N5=2,N5=3,N5=5),\" \",\"\"))))))","v":""},null,null,null,"Step 3: MOUNT STYLE DIMENSIONS Choose the mount style that most closely resembles your valve’s mount style. If none are applicable choose mount style 5 and provide a sketch and dimensions based on the examples on the form. "]
[null,null,null,null,null,null,null,null,null,null,null,"DIM G2:",null,null,{"$f":"IF(AND(Z46=TRUE, Z47=FALSE, NOT((ISBLANK(N16)))),\"inch(es)\",IF(AND(Z47=TRUE, Z46=FALSE, NOT((ISBLANK(N16)))),\"mm\",\"\"))","v":""},{"$f":"IF(AND(N5=4,(ISBLANK(N16))),\"CANNOT BE BLANK\",IF(ISNUMBER(SEARCH(\"MM\",N16)),\"DO NOT INCLUDE UNIT OF MEASURE\",IF(ISNUMBER(SEARCH(CHAR(34),N16)),\"DO NOT INCLUDE UNIT OF MEASURE\",IF(ISNUMBER(SEARCH(\"in\",N16)),\"DO NOT INCLUDE UNIT OF MEASURE\", IF(AND(N5=4,(NOT(ISBLANK(N16)))),\"\",IF(OR(N5=1,N5=2,N5=3,N5=5),\" \",\"\"))))))","v":""},null,null,null,null,null,null,null,null,null,"Actuator and Qty. list:"]
[null,null,null,null,null,null,null,null,null,null,null,"   MOUNTING HOLES:",null,null,null,null,null,null,null,null,null,null,null,null,null,"PR_PKR","LF"]
[null,null,null,null,null,null,null,null,null,null,null,null,null,"DRILLED",null,null,null,null,null,null,null,null,null,null,null,1,1]
[null,null,null,null,null,null,null,null,null,null,null,null,"DIA Ø",null,{"$f":"IF(AND(Z46=TRUE, Z47=FALSE, NOT((ISBLANK(N19)))),\"inch(es)\",IF(AND(Z47=TRUE, Z46=FALSE, NOT((ISBLANK(N19)))),\"mm\",\"\"))","v":""},{"$f":"IF(AND(ISBLANK(N5),ISBLANK(N22),ISBLANK(N19)),\"REQUIRE DRILLED OR TAPPED \",IF(AND(ISBLANK(N22),ISBLANK(N19),NOT(ISBLANK(N5))),\"REQUIRE DRILLED OR TAPPED. \",IF(AND(ISBLANK(N19),NOT(ISBLANK(N22))),\"\",IF(COUNT(FIND({\"a\",\"b\",\"c\",\"d\",\"e\",\"f\",\"g\",\"h\",\"i\",\"j\",\"k\",\"l\",\"m\",\"n\",\"o\",\"p\",\"q\",\"r\",\"s\",\"t\",\"u\",\"v\",\"w\",\"x\",\"y\",\"z\",\"A\",\"B\",\"C\",\"D\",\"E\",\"F\",\"G\",\"H\",\"I\",\"J\",\"K\",\"L\",\"M\",\"N\",\"O\",\"P\",\"Q\",\"R\",\"S\",\"T\",\"U\",\"V\",\"W\",\"X\",\"Y\",\"Z\",\"*\",\"=\",\"+\"},N19))>0,\"INVALID ENTRY\",\"\"))))","v":"REQUIRE DRILLED OR TAPPED "},null,null,null,null,null,null,null,null,null,"SY4_SY5_SY6",2]
[null,null,null,null,null,null,null,null,null,null,null,null,"---OR---",null,null,null,null,null,null,null,null,null,null,null,null,1,"EF"]
[null,null,null,null,null,null,null,null,null,null,null,null,null,"TAPPED EX:10-32",null,null,null,null,null,null,null,null,null,null,null,"SY7_SY8",1]
[null,null,null,null,null,null,null,null,null,null,null,null,"THREAD",null,null,{"$f":"IF(AND(ISBLANK(N5),ISBLANK(N19),ISBLANK(N22)),\"REQUIRE DRILLED OR TAPPED \",IF(AND(ISBLANK(N19),ISBLANK(N22),NOT(ISBLANK(N5))),\"REQUIRE DRILLED OR TAPPED. \",IF(AND(ISBLANK(N22),NOT(ISBLANK(N19))),\"\",IF(COUNT(FIND({\"a\",\"b\",\"c\",\"d\",\"e\",\"f\",\"g\",\"h\",\"i\",\"j\",\"k\",\"l\",\"n\",\"o\",\"p\",\"q\",\"r\",\"s\",\"t\",\"u\",\"v\",\"w\",\"y\",\"z\",\"A\",\"B\",\"C\",\"D\",\"E\",\"F\",\"G\",\"H\",\"I\",\"J\",\"K\",\"L\",\"N\",\"O\",\"P\",\"Q\",\"R\",\"S\",\"T\",\"U\",\"V\",\"W\",\"Y\",\"Z\",\"*\",\"=\",\"+\"},N22))>0,\"INVALID ENTRY\",\"\"))))","v":"REQUIRE DRILLED OR TAPPED "},null,null,null,null,null,null,null,null,null,1,2]
[null,"MOUNT STYLE 5: SKETCH YOUR MOUNT STYLE USING ABOVE MOUNT STYLE EXAMPLES",null,null,null,null,null,null,null,null,null,null,"SPEC."]
[null,null,null,null,null,null,null,null,null,null,null,null,null,null,null,null,null,null,null,"Step 4: Provide the distance between mounting holes (or the bolt circle) and the height of the stem from the mounting shelf to the top of the stem. If mount Style 4 provide the width and height of the packing gland. Provide the diameter or the thread spec. of the mounting holes. Please note any error messages that may appear and make corrections according to them."]
[null,"SHAFT STYLE 4",null,null,null,"KEY SIZE",null,"SHAFT STYLE 6",null,null,null,"SHAFT STYLE 8",null,null,null,"SHAFT STYLE 9",null,null,null,null,null,null,null,null,null,"SY9_SY10_SY11_SY12"]
[null,null,null,null,null,false,null,null,null,null,null,null,null,null,null,null,null,null,null,null,null,null,null,null,null,1,"LM_NM_AM_GM_N4"]
[null,null,null,null,null,false,null,null,null,null,null,null,null,null,null,null,null,null,null,null,null,null,null,null,null,"GM_GK",1]
[null,null,null,null,null,false,null,null,null,null,null,null,null,null,null,null,null,null,null,null,null,null,null,null,null,1,2]
[null,null,null,null,null,false,null,null,null,null,null,null,null,null,null,null,null,null,null,null,null,null,null,null,null,2,"SY1"]
[null,null,null,null,null,false]
[null,null,null,null,null,false,null,null,null,null,null,null,null,null,null,null,null,null,null,null,null,null,null,null,null,1,"SY2_SY3"]
[null,null,null,null,null,false,null,null,null,null,null,null,null,null,null,null,null,null,null,null,null,null,null,null,null,"AM_NM",1]
[null,"SHAFT STYLE 5",null,null,null,null,null,"SHAFT STYLE 7",null,null,null,"SHAFT STYLE 9",null,null,null,null,null,null,null,null,null,null,null,null,null,1,"OTHER"]
[null,null,null,null,null,null,null,null,null,null,null,null,null,null,null,null,null,null,null,null,null,null,null,null,null,2,1]
[null,null,null,null,null,null,null,null,null,null,null,null,null,null,null,null,null,null,null,null,null,null,null,null,null,"AF_NF",2]
[null,null,null,null,null,null,null,null,null,null,null,null,null,null,null,false,null,false,null,null,null,null,null,null,null,1,"LM"]
[null,null,null,null,null,null,null,null,null,null,null,null,null,null,null,"CHECK ONE",null,null,null,"Step 5: SHAFT STYLE DIMENSIONS Choose the shaft style that most closely resembles your valve’s shaft style. ",null,null,null,null,null,2,1]
[null,null,null,null,null,null,null,null,null,null,null,null,null,null,null,{"$f":"IF(AND(R36=FALSE,P36=FALSE,C41=9),\"SQUARE OR DIAMOND MUST BE CHECKED\",IF(AND(R36=TRUE,P36=TRUE,C41=9),\"SQUARE OR DIAMOND MUST BE CHECKED\",IF(AND(C41<>9,NOT(ISBLANK(C41))),\" \",\"\")))","v":""},null,null,null,null,null,null,null,null,null,null,2]
[null,null,null,null,null,"CHECK ONE"]
[]
[null,"SHAFT STYLE ",null,"DIM D:",null,null,"DIM E:",null,null,"DIM F:",null,null,"DIM G:",null,null,"DIM H:",null,null,null,"Step 6: Provide the valve stem diameter and the length and width of the drive surface (key, flat surface, or the distance of a drive hole to the top of the stem). Please note any error messages \nthat may appear and make corrections according to them.",null,null,null,null,null,"2 way 3 way drop down"]
[null,null,null,null,null,{"$f":"IF(AND(Z46=TRUE, Z47=FALSE, NOT((ISBLANK(E41)))),\"inch(es)\",IF(AND(Z47=TRUE, Z46=FALSE, NOT((ISBLANK(E41)))),\"mm\",\"\"))","v":""},null,null,{"$f":"IF(AND(Z46=TRUE, Z47=FALSE, NOT((ISBLANK(H41)))),\"inch(es)\",IF(AND(Z47=TRUE, Z46=FALSE, NOT((ISBLANK(H41)))),\"mm\",\"\"))","v":""},null,null,{"$f":"IF(AND(Z46=TRUE, Z47=FALSE, NOT((ISBLANK(K41)))),\"inch(es)\",IF(AND(Z47=TRUE, Z46=FALSE, NOT((ISBLANK(K41)))),\"mm\",\"\"))","v":""},null,null,{"$f":"IF(AND(Z46=TRUE, Z47=FALSE, NOT((ISBLANK(N41)))),\"inch(es)\",IF(AND(Z47=TRUE, Z46=FALSE, NOT((ISBLANK(N41)))),\"mm\",\"\"))","v":""},null,null,{"$f":"IF(AND(Z46=TRUE, Z47=FALSE, NOT((ISBLANK(Q41)))),\"inch(es)\",IF(AND(Z47=TRUE, Z46=FALSE, NOT((ISBLANK(Q41)))),\"mm\",\"\"))","v":""},null,null,null,null,null,null,null,2]
[null,{"$f":"IF(OR(C41=4,C41=5,C41=6,C41=7,C41=8,C41=9),\"\",IF(NOT(ISBLANK(N5)),\"SHAFT STYLE REQUIRED.\",\"SHAFT STYLE REQUIRED\"))","v":"SHAFT STYLE REQUIRED"},null,{"$f":"IF(AND(ISBLANK(E41),OR(C41=4,C41=5,C41=6,C41=8)),\"CANNOT BE BLANK\",IF(AND(ISBLANK(E41),NOT(ISBLANK(H41)),OR(C41=7,C41=9),H41<N8),\"REQUIRED IF  DIM E LESS THAN DIM C\", IF(AND(ISBLANK(E41),OR(C41=7,C41=9)),\"MAY NOT BE REQUIRED\", IF(AND((NOT(ISBLANK(N6))),N6-(N19*50%)<=E41,(NOT(ISBLANK(N7))),N7-(N19*50%)<=E41,(NOT(ISBLANK(E41))),OR(N5=1,N5=2,N5=4)),\"MOUNTING MAY BE SMALLER THAN SHAFT\",IF(AND((NOT(ISBLANK(N11))),N11-N19<=E41,(NOT(ISBLANK(E41))),OR(N5=1,N5=2,N5=4)),\"MOUNTING IS SMALLER THAN SHAFT\",IF(AND(N7-N19<=E41,(NOT(ISBLANK(E41))),N5=3),\"MOUNTING MAY BE SMALLER THAN SHAFT\",IF(ISNUMBER(SEARCH(\"MM\",E41)),\"DO NOT INCLUDE UNIT OF MEASURE\",IF(ISNUMBER(SEARCH(CHAR(34),E41)),\"DO NOT INCLUDE UNIT OF MEASURE\",IF(ISNUMBER(SEARCH(\"in\",E41)),\"DO NOT INCLUDE UNIT OF MEASURE\",\"\")))))))))","v":""},null,null,{"$f":"IF(AND(ISBLANK(H41),OR(C41=4,C41=5,C41=6,C41=7,C41=8, C41=9)),\"CANNOT BE BLANK\", IF(ISNUMBER(SEARCH(\"MM\",H41)),\"DO NOT INCLUDE UNIT OF MEASURE\", IF(ISNUMBER(SEARCH(CHAR(34),H41)),\"DO NOT INCLUDE UNIT OF MEASURE\", IF(ISNUMBER(SEARCH(\"in\",H41)),\"DO NOT INCLUDE UNIT OF MEASURE\", IF(H41>N8,\"CANNOT BE GREATER THAN DIM C\",\"\")))))","v":""},null,null,{"$f":"IF(AND(ISBLANK(K41),OR(C41=6,C41=7,C41=8,C41=9)),\"CANNOT BE BLANK\", IF(AND(ISBLANK(K41),OR(C41=4,C41=5),AND(Z68>1)),\"CHOOSE ONLY ONE KEY SIZE\",IF(AND(ISBLANK(K41),OR(C41=4,C41=5),AND(Z60=FALSE,Z61=FALSE,Z62=FALSE,Z63=FALSE,Z64=FALSE,Z65=FALSE, Z66=FALSE)),\"CANNOT BE BLANK\",IF(ISNUMBER(SEARCH(\"MM\",K41)),\"DO NOT INCLUDE UNIT OF MEASURE\",IF(ISNUMBER(SEARCH(CHAR(34),K41)),\"DO NOT INCLUDE UNIT OF MEASURE\",IF(ISNUMBER(SEARCH(\"in\",K41)),\"DO NOT INCLUDE UNIT OF MEASURE\",IF(AND(OR(C41=4,C41=5,C41=6,C41=8),K41>=E41),\"CANNOT BE GREATER OR EQUAL TO DIM D\",\"\")))))))","v":""},null,null,{"$f":"IF(AND(ISBLANK(N41),OR(C41=4,C41=5,C41=8)),\"CANNOT BE BLANK\",IF(OR(C41=6,C41=7,C41=9),\" \",IF(AND(ISBLANK(E41),OR(C41=7,C41=9)),\"MAY NOT BE REQUIRED\",IF(ISNUMBER(SEARCH(\"MM\",N41)),\"DO NOT INCLUDE UNIT OF MEASURE\",IF(ISNUMBER(SEARCH(CHAR(34),N41)),\"DO NOT INCLUDE UNIT OF MEASURE\",IF(ISNUMBER(SEARCH(\"in\",N41)),\"DO NOT INCLUDE UNIT OF MEASURE\",IF(AND(OR(C41=4,C41=5),AND(N41>K41,AND(Z60=FALSE,Z61=FALSE,Z62=FALSE,Z63=FALSE,Z64=FALSE,Z65=FALSE,Z66=FALSE))),\"CANNOT BE GREATER THAN DIM F\",IF(AND(Z46=TRUE, OR(AND(Z60=TRUE,N41>0.125),AND(Z61=TRUE,N41>0.1875),AND(Z62=TRUE,N41>0.25),AND(Z63=TRUE,N41>0.3125),AND(Z64=TRUE,N41>0.375),AND(Z65=TRUE,N41>0.4375),AND(Z66=TRUE,N41>0.5))),\"CANNOT BE GREATER THAN DIM F\",IF(AND(OR(C41=4,C41=5),AND(Z47=TRUE,OR(AND(Z60=TRUE,N41>3.175),AND(Z61=TRUE,N41>4.7625),AND(Z62=TRUE,N41>6.35),AND(Z63=TRUE,N41>0.3125),AND(Z64=TRUE,N41>7.9375),AND(Z65=TRUE,N41>11.1125),AND(Z66=TRUE,N41>12.7)))),\"CANNOT BE GREATER THAN DIM F\",\"\")))))))))","v":""},null,null,{"$f":"IF(AND(C41=5,ISBLANK(Q41)),\"CANNOT BE BLANK\",IF(OR(C41=4,C41=6,C41=7,C41=8,C41=9),\" \",IF(AND(ISBLANK(E41),OR(C41=7,C41=9)),\"MAY NOT BE REQUIRED\",IF(ISNUMBER(SEARCH(\"MM\",Q41)),\"DO NOT INCLUDE UNIT OF MEASURE\",IF(ISNUMBER(SEARCH(CHAR(34),Q41)),\"DO NOT INCLUDE UNIT OF MEASURE\",IF(ISNUMBER(SEARCH(\"in\",Q41)),\"DO NOT INCLUDE UNIT OF MEASURE\",IF(AND(C41=5,Q41>N8-H41),\"CANNOT BE GREATER THAN DIM C – DIM E\",\"\")))))))","v":""},null,null,null,null,null,null,null,null,null,3]
[]
[]
[null,"ACTUATOR",null,null,null,null,null,null,null,null,null,null,null,null,null,null,null,null,null,null,null,null,null,null,null,false,"Inches"]
[null,"EXISTING ACTUATOR MODEL:",null,null,null,null,"CONTROL TYPE:",null,"ON/OFF",null,"FLOATING POINT",null,null,null,null,null,null,null,null,null,null,null,null,null,null,false,"Milimeters"]
[null,"FAIL SAFE:",null,"YES","NO",null,null,null,null,null,null,"VDC",null,"PWM"]
[null,"FAIL POSSITION:",null,"NO","NC",null,"INDOOR",null,"OUTDOOR",null,null,null,null,"RANGE:",null,"RANGE:"]
[null,"VOLTAGE:",null,null,null,null,null,null,null,null,null,null,null,null,null,null,null,null,null,"Step 7: ACTUATOR Provide information on the environment and process that this linkage system will be utilized in."]
[]
[null,"COMPANY:",null,null,null,null,{"$f":"IF((ISBLANK(D52)),\"REQUIRED\",\"\")","v":"REQUIRED"},"QUANTITY:",null,null,null,null,"VALVE MANUFACTURE:",null,null,null,null,null,null,null,null,null,null,null,null,"Mount style","Shaft Style"]
[null,null,null,null,null,null,null,null,null,null,null,null,null,null,null,null,null,null,null,null,null,null,null,null,null,1,4]
[null,"JOB NAME: ",null,null,null,null,null,"MEDIA TEMP: ",null,null,null,null,"VALVE SERIES: ",null,null,null,null,null,null,null,null,null,null,null,null,2,5]
[null,null,null,null,null,null,null,null,null,null,null,null,null,null,null,null,null,null,null,null,null,null,null,null,null,3,6]
[null,"PO#:",null,null,null,null,null,"MEDIA TYPE:",null,null,null,null,"VALVE MODEL:",null,null,null,null,null,null,"Step 8: Fill this form as fully as possible. Red fields are absolutely necessary. \nError and attention fields will always be \nin Red. Please note any error messages that may appear and make corrections according to them. Provide dimensions \nto the nearest 0.001”",null,null,null,null,null,4,7]
[null,null,null,null,null,null,null,null,null,null,null,null,null,null,null,null,null,null,null,null,null,null,null,null,null,5,8]
[null,"PHONE#:",null,null,null,null,null,"SYSTEM PRESSURE:",null,null,null,null,"VALVE SIZE:",null,null,null,null,{"$f":"IF((ISBLANK(O58)),\"REQUIRED\",\"\")","v":"REQUIRED"},null,null,null,null,null,null,null,null,9]
[null,null,null,null,null,null,null,null,null,null,null,null,null,null,null,null,null,null,null,null,null,null,null,null,null,"Key Sizes"]
[null,"EMAIL: ",null,null,null,null,{"$f":"IF((ISBLANK(C60)),\"REQUIRED\",\"\")","v":"REQUIRED"},"VALVE TAG/LOCATION: ",null,null,null,null,"2 WAY/3 WAY: ",null,null,null,null,{"$f":"IF((ISBLANK(O60)),\"REQUIRED\",\"\")","v":"REQUIRED"},null,null,null,null,null,null,null,false,"0.125\""]
[null,null,null,null,null,null,null,null,null,null,null,null,null,null,null,null,null,null,null,null,null,null,null,null,null,false,"0.1875\""]
[null,"NOTE: THIS INFORMATION WILL BE UTILIZED IN THE FABRICATION OF A CUSTOM LINKAGE SYSTEM FOR YOUR VALVE REQUIREMENT; THEREFORE, IT IS ESSENTIAL THAT THE ABOVE DIMENSIONS BE FURNISHED WITH READINGS TAKEN TO THE NEAREST .001\". ANY ERRONEOUS DIMENSIONS FURNISHED WHICH RESULT IN IMPROPER FIT OF THIS LINKAGE SYSTEM ARE NOT THE RESPONSIBILITY OF BELIMO AIR CONTROLS. ANY REWORK REQUIRED WILL RESULT IN AN EXTRA CHARGE. ",null,null,null,null,null,null,null,null,null,null,null,null,null,null,null,null,null,null,null,null,null,null,null,false,"0.25\""]
[null,null,null,null,null,null,null,null,null,null,null,null,null,null,null,null,null,null,null,null,null,null,null,null,null,false,"0.3125\""]
[null,null,null,null,null,null,null,null,null,null,null,null,null,null,null,null,null,null,null,null,null,null,null,null,null,false,"0.375\""]
[null,"CUSTOM KITS ARE DESIGNED TO YOUR UNIQUE SPECIFICATIONS AND ARE NOT RETURNABLE\n",null,null,null,null,null,null,null,null,null,null,null,null,null,null,null,null,null,null,null,null,null,null,null,false,"0.4375\""]
[null,null,null,null,null,null,null,null,null,null,null,null,null,null,null,null,null,null,null,null,null,null,null,null,null,false,"0.500\""]
[null,"COMPANY CONTACT/DIMENSIONS PROVIDED BY:",null,null,null,null,null,null,null,null,null,null,null,"DATE:",null,null,null,null,null,"Step 9: Click the 'Submit Form' button below or save this form as a .xlsx file and send a copy to Belimo tech support. NOTE: Macro-enabled workbooks (.xlsm file types) cannot be accepted.",null,null,null,null,null,"If any of the key sizes are checked"]
[null,null,null,null,null,null,null,null,null,null,null,null,null,null,null,null,null,null,null,null,null,null,null,null,null,{"$f":"COUNTIF(Z60:Z66,\"TRUE\")","v":0}]
[]
[]
[]
[]
[null,"INTERNAL USE ONLY",null,"QUOTE#",null,null,null,"SO#",null,null,null,"NOTES:"]
[null,null,null,"NEW ACTUATOR:",null,null,null,"Line #"]